{"text_format":"1","workbook":"xlsx","n_sheets":7,"sheets":["START HERE","Contact Quarantine Calculator","Contacts Previously Diagnosed ","Case Isolation Calculator","Vaccinated Contact","Resources","Dropdown"],"not_rendered":{"charts":0,"images":2,"macros":1,"external_links":0,"defined_names":0,"comments":0,"pivot_tables":0},"unopened":[],"bounds":{"document_bytes":16777216,"sheet_cells":100000,"rows_first":2000,"rows_last":500,"rows_between":2000,"halvings":0,"cell_chars":16384,"cell_head_chars":4096},"cells_cut":0,"cells_raw":0,"read":"whole","date_system":"1900"}

{"sheet":"START HERE","index":0,"n_rows":22,"n_cols":20,"rows_kept":22,"cut":false,"hidden":false,"merged":[[6,12,6,13],[6,3,6,4],[17,2,17,3],[17,5,17,6],[14,2,14,6],[8,10,8,16],[12,3,12,4],[8,1,9,6]]}
[null,null,null,null,null,null,null,null,null,null,null,"Contact or Case?"]
[]
[null,null,null,null,null,null,null,"Contact",null,null,null,null,null,null,null,null,null,null,null,"Case"]
[]
[null,null,null,null,null,null,null,"Was the contact vaccinated?*"]
[]
[null,null,null,"Yes",null,null,null,null,null,null,null,null,"No"]
[]
[null,"Is the contact up-to-date?",null,null,null,null,null,null,"No",null,"Was this person previously diagnosed?"]
[null,null,null,null,null,null,null,null,"(unvaccinated or not"]
[null,null,null,null,null,null,null,null,"up-to-date)"]
[]
[null,null,null,"Yes",null,null,null,null,null,null,null,"Yes",null,null,null,"No"]
[]
[]
[]
[]
[]
[]
[]
[]
[null,"*Please see Resources tab for resources regarding vaccination."]

{"sheet":"Contact Quarantine Calculator","index":1,"n_rows":35,"n_cols":12,"rows_kept":35,"cut":false,"hidden":false,"merged":[[35,3,38,3],[4,3,4,6],[5,3,5,6],[6,3,6,6],[7,3,7,6],[9,3,9,6],[10,3,10,6],[11,3,11,6],[13,3,13,6],[14,3,14,6],[17,3,17,6],[15,3,15,6],[18,3,18,6],[1,8,2,9],[21,11,30,13],[34,3,34,6],[27,8,31,8],[2,1,2,7],[19,3,19,6]]}
[]
[null,"Contact Quarantine Calculator"]
[null,"If the CONTACT previously had either a CONFIRMED case of COVID-19 or a PROBABLE case of COVID-19 due to a positive antigen test result, see the 'Contacts Previously Diagnosed' tab in this workbook for additional guidance before determining quarantine period. If the contact was fully vaccinated, see the 'Vaccinated Contact' tab.",null,null,null,null,null,null,null,null,null,"For more details and resources: "]
[null,null,null,null,null,null,null,null,null,null,null,"DHS Close Contacts Webpage"]
[null,null,null,"Enter the last date the CONTACT was exposed to the Index Case"]
[null,null,null,"Note: For household contacts with on-going expsoure, this will be the the last day of isolation for the infected household member. If the Index case is able to separate it would be the last date they had contact before the separation began."]
[null,null,"*",null,null,null,null,"*"]
[null,null,null,"Enter date"]
[]
[null,null,null,"Is the CONTACT having symptoms?"]
[null,null,"*",null,null,null,null,"*"]
[null,null,null,"Select yes or no from dropdown"]
[]
[null,null,null,"Did the contact test negative after symptom onset?"]
[null,null,"*",null,null,null,null,"*",{"$f":"IF(D15 = \"No\", \"\", IF(D15=\"Yes\", \"Advise isolation until contact is well for 24 hours--see below for quarantine recommendations\", \"\"))","v":""}]
[null,null,null,"Select yes or no from dropdown"]
[]
[null,null,null,"Is contact able and willing to wear a mask for at least 10 days from symptom onset (if symptomatic) and last exposure date?"]
[null,null,"*",null,null,null,null,"*"]
[null,null,null,"Select yes or no from dropdown"]
[null,"Tested Negative\nCONTACTS",null,"Asymptomatic CONTACTS",null,null,"Symptomatic \nCONTACTS"]
[null,"Last day of 5 or 10-day quarantine",null,"Last day of 5 or 10-day quarantine",null,null,"Date Symptoms began",null,"Well date of contact\n(leave blank if still ill)"]
[null,{"$f":"IF(AND(D11=\"Yes\",D19=\"No\"),D7+10,IF(D11=\"Yes\",D7+5,\"1/1/1111\"))","v":"1/1/1111"},null,{"$f":"IF(AND(D11=\"No\",D19=\"No\"),D7+10,IF(D11=\"No\",D7+5,\"1/1/1111\"))","v":"1/1/1111"},null,"*",null,"*"]
[null,{"$f":"IF(D15=\"Yes\",IF(D19=\"No\",\"Unable to wear a mask-10 day quarantine\",\"with mask wearing 10 days after exposure\"),\"\")","v":""},null,{"$f":"IF(D11=\"No\",IF(D19=\"No\",\"Unable to wear a mask-10 day quarantine\",\"with mask wearing 10 days after exposure\"),\"\")","v":""},null,null,{"$f":"IF(G23>(D7+10),\"*Warning-symptom onset and expsoure date more than 10 days apart--results below may not be accurate for situation.*\",\"\")","v":""}]
[null,null,null,null,null,null,"Last day of 5 or 10-day quarantine",null,"Last day of isolation and quarantine if well date is known"]
[null,null,null,null,null,null,{"$f":"IF(AND(D11=\"Yes\",D19=\"No\"),D7+10,IF(D11=\"Yes\",D7+5,\"1/1/1111\"))","v":"1/1/1111"},null,{"$f":"IF(D11=\"Yes\",MAX(G29,I23, G26),\"1/1/1111\")","v":"1/1/1111"}]
[null,null,null,null,null,null,null,null,{"$f":"IF(D11=\"Yes\",IF(D19=\"No\",\"Unable to wear a mask-10 day quarantine and isolation\",\"with mask wearing 10 days after exposure and onset\"),\"\")","v":""}]
[null,null,null,null,null,null,"Earliest possible last day of isolation (5 or 10 days)",null,"If a contact at any time develops symptoms, then they must meet requirements of both the 5 day quarantine AND case isolation; whichever is longer. If they test positive they can follow the isolation instructions only. Testing is recommended for all contacts, ideally 5 days after exposure. If client is unable to wear a mask for 10 days, client should be advised on a 10-day isolation/quarantine (whichever situation applies in client's scenario)."]
[null,null,null,null,null,null,{"$f":"IF(AND(D11=\"Yes\",D19=\"No\"),G23+10,IF(D11=\"Yes\",G23+5,\"1/1/1111\"))","v":"1/1/1111"}]
[]
[null,null,null,null,null,null,"Later of client's last date of quarantine and isolation"]
[null,null,null,null,null,null,{"$f":"IF(D11=\"Yes\",MAX(G26,G29,I26),\"1/1/1111\")","v":"1/1/1111"}]
[null,null,null,null,null,null,{"$f":"IF(D11=\"Yes\",IF(D19=\"No\",\"Unable to wear a mask-10 day quarantine and isolation\",\"with mask wearing 10 days after exposure and onset\"),\"\")","v":""}]
[]
[null,null,null,"Note: This quarantine calculator is intended to provide general guidance for acceptable return to community activities. Health care personnel, students, persons in congregate settings and some workers may have alternate or more specific QUARANTINE requirements following contact with a case. Individuals should follow their workplace, school, daycare and local public health agency quarantine requirements."]

{"sheet":"Contacts Previously Diagnosed ","index":2,"n_rows":21,"n_cols":5,"rows_kept":21,"cut":false,"hidden":false,"merged":[[20,2,21,4],[1,1,2,4],[11,2,13,2],[11,4,13,4],[11,7,13,7],[17,2,18,2],[17,3,18,3]]}
[]
[null,"Was the contact previously diagnosed with a CONFIRMED case of COVID-19 or with a PROBABLE case of COVID-19 due to a positive lab-based antigen test?"]
[]
[null,"If no ","Return to the Contact Quarantine Calculator Tab (or Vaccinated Contact Calculator, whichever is appropriate for your client) to determine client's next steps."]
[]
[null,"If yes ","Last Exposure Date: Enter the last date the client had contact with the Index case-patient"]
[null,null,null,"Enter date"]
[]
[null,null,"During contact's previous lab-based confirmed infection, what was the date of symptom onset? (If the patient never had symptoms during their infectious period, use date of specimen collection for the earliest confirmed lab result)"]
[null,null,null,"Enter date"]
[]
[null,null,"Time period when a previously diagnosed* case patient does NOT need to quarantine if identified as a close contact",{"$f":"D9","v":"00:00:00"}]
[null,null,null,"to"]
[null,null,null,{"$f":"D9+90","v":"1900-03-30"}]
[]
[null,null,"Dates on or after which a previously diagnosed* case patient DOES need to quarantine if identified as a close contact",{"$f":"D9+91","v":"1900-03-31"}]
[]
[null,null,"Do you need to switch to contact or vaccinated contact calculator?",{"$f":"IF(D6>D14,\"yes\",\"No\")","v":"No"},"If yes, Return to the Contact Quarantine Calculator Tab (or Vaccinated Contact Calculator, whichever is appropriate for your client) to determine client's next steps."]
[null,null,null,null,"If no, Client does not need to be quarantined at this time. Inform them of need to continue to following prevention measures and inform them that exposure to a case at a later date may result in the need to be quarantined in the future. If they are symptomatic, they should at least isolate until they are well and follow up with their primary care provider to determine a cause for their symptoms or if further testing should be pursued"]
[]
[null,null,"*For this calculator only 'previously diagnosed' means the CONTACT previously had either (1) a CONFIRMED case of COVID-19 OR (2) had a PROBABLE case of COVID-19 due to a positive lab-based antigen test"]

{"sheet":"Case Isolation Calculator","index":3,"n_rows":34,"n_cols":11,"rows_kept":34,"cut":false,"hidden":false,"merged":[[30,3,31,3],[36,3,39,3],[7,3,7,6],[8,3,8,6],[9,3,9,6],[21,3,21,6],[22,3,22,6],[11,3,11,6],[12,3,12,6],[13,3,13,6],[15,3,15,6],[16,3,16,6],[18,3,18,6],[19,3,19,6],[17,3,17,6],[20,3,20,6],[0,7,1,8],[4,8,7,8],[3,10,7,14],[4,3,4,6],[5,3,5,6],[3,3,3,6]]}
[]
[null,"Case Isolation Calculator"]
[null,null,null,null,null,null,null,null,null,null,"See the CDC webpage on Discontinuing Home Isolation for more details "]
[null,null,null,"Is the CASE having symptoms                                \n (or have they had symptoms)?",null,null,null,null,null,null,"Note exceptions to  typical isolation recommendations: Isolation times in this calculator are for persons using a symptom/time based strategy for determining when they can be around others. For most people this is the recommended strategy. In some circumstances a test-based strategy may by indicated. Additionally, for a small number of patients with severe illness, duration of isolation for up to 20 days after symptom onset may be warranted. For these patients isolation decisions will be made consultation with infectious disease experts."]
[null,null,"*",null,null,null,null,"*"]
[null,null,null,"Select yes or no from dropdown"]
[]
[null,null,null,"Enter the onset/collection date of the CASE (use collection date if case-patient has not had symptoms)"]
[null,null,"*",null,null,null,null,"*",null,null,"For more details and resources: "]
[null,null,null,"Enter date",null,null,null,null,null,null,"DHS Diagnosed Webpage"]
[]
[null,null,null,"Was CASE asymptomatic (or have unknown symptoms) at the time of an intial postive antigen test AND CASE tested negative within 48 hours of the positive test?"]
[null,null,"*",null,null,null,null,"*"]
[null,null,null,"Select yes or no from dropdown"]
[null,null,null,{"$f":"IF(D13=\"Yes\", \"Client may be considered as not a case. Review the record and apply local guidance.\", \"\")","v":""}]
[null,null,null,"Is CASE able and willing to wear a mask for at least 10 days from symptom onset (if symptomatic) or collection date (if asymptomatic)?"]
[null,null,"*",null,null,null,null,"*"]
[null,null,null,"Select yes or no from dropdown"]
[null,null,null,"Did CASE retest on or around day 5 of isolation AND test positive on that test?"]
[null,null,"*",null,null,null,null,"*"]
[null,null,null,"Select yes or no from dropdown"]
[null,null,null,"14 days before onset/collection date of the CASE"]
[null,null,null,{"$f":"IF(ISBLANK(D9),\"\",D9-14)","v":""}]
[]
[null,null,null,"Asymptomatic CASES",null,null,"Symptomatic CASES"]
[null,null,null,"Last day of 5 or 10-day isolation",null,null,"*Well date of the case (leave blank if still ill)",null,"*Well in this algorithm means"]
[null,null,null,{"$f":"IF(AND(D5=\"No\",D17=\"No\"), D9+10,IF(AND(D5=\"No\",D20=\"Yes\"),D9+10,IF(D5=\"No\", D9+5,\"1/1/1111\")))","v":"1/1/1111"},null,"*",null,"*","1) No fever without the use of fever reducing medications for at least 24 hours"]
[null,null,null,{"$f":"IF(D5=\"No\",IF(D17=\"No\",\"Unable to wear a mask-10 day isolation\",\"with mask wearing 10 days after test\"),\"\")","v":""},null,null,null,null,"2) Improvement in other symptoms"]
[null,null,null,"*If client is unable or unwilling to wear a mask, 10-day isolation is recommended.",null,null,"Earliest possible last day of isolation"]
[null,null,null,null,null,null,{"$f":"IF(AND(D5=\"Yes\",D17=\"No\"), D9+10,IF(AND(D5=\"Yes\",D20=\"Yes\"),D9+10,IF(D5=\"Yes\", D9+5,\"1/1/1111\")))","v":"1/1/1111"}]
[null,null,null,null,null,null,{"$f":"IF(D5=\"Yes\",IF(D17=\"No\",\"Unable to wear a mask-10 day isolation\",\"with mask wearing 10 days after onset\"),\"\")","v":""}]
[null,null,null,null,null,null,"Last day of isolation if *well date is known"]
[null,null,null,null,null,null,{"$f":"IF(D5=\"Yes\",MAX(G30,G27),\"1/1/1111\")","v":"1/1/1111"}]
[null,null,null,null,null,null,{"$f":"IF(D5=\"Yes\",IF(D17=\"No\",\"Unable to wear a mask-10 day isolation\",\"with mask wearing 10 days after onset\"),\"\")","v":""}]

{"sheet":"Vaccinated Contact","index":4,"n_rows":59,"n_cols":16,"rows_kept":59,"cut":false,"hidden":false,"merged":[[9,6,10,8],[11,6,11,8],[5,13,7,14],[5,6,6,8],[27,13,27,17],[20,8,20,10],[20,11,22,11],[21,4,21,6],[21,8,21,10],[22,4,22,6],[22,8,22,10],[5,15,5,17],[6,3,6,4],[6,11,6,12],[12,6,12,8],[17,6,17,8],[29,6,30,8],[31,6,31,8],[18,6,18,8],[53,10,58,10],[36,11,38,13],[19,3,19,11],[20,4,20,6],[2,2,2,8],[0,10,3,11],[8,11,8,12],[7,3,7,4],[3,2,3,9],[4,2,4,10],[5,3,5,4],[5,10,7,10],[7,6,7,8],[27,19,27,21],[23,4,23,10],[24,4,24,10],[25,6,25,8],[26,6,26,8],[26,13,26,17],[26,19,26,21],[64,7,64,10],[13,6,13,8],[14,6,14,8],[41,6,42,8],[43,6,43,8],[44,6,44,8],[33,6,33,8],[51,6,52,6],[32,6,32,8],[35,6,36,8],[37,6,37,8],[38,6,38,8],[27,6,27,8],[27,9,27,10],[16,6,16,8],[15,6,15,8]]}
[]
[null,null,"Vaccinated Contact Quarantine Calculator"]
[null,null,"This calculator is for clients who have completed their primary vaccine series who have or had exposure to an infectious case."]
[null,null,"Note: This quarantine calculator is intended to provide general guidance for acceptable return to community activities. Health care personnel, students, persons in congregate settings and some workers may have alternate or more specific QUARANTINE requirements following contact with a case. Use of a quarantine period less than 10 days may not be acceptable in all circumstances. Individuals should follow their workplace, school, daycare and local public health agency quarantine requirements."]
[]
[null,null,null,"Enter the date of the last vaccination dose of primary series",null,null,"Enter the date of the booster dose",null,null,null,"Date on or after which a vaccinated person does NOT need to quarantine if identified as a close contact*",null,null,"*Contacts with an exposure on or after this date who develop symptoms are still advised to isolate.",null,"DHS Close Contacts Webpage"]
[null,null,null,"Note: This is generally the date of second dose of a two-dose series or the date of dose in a single-dose series. For populations in which a third primary dose is recommended, this would be the date of the 3rd dose in the primary series.",null,null,null,null,null,null,null,{"$f":"IF(ISBLANK(G8), D8+14, G8)","v":"1900-01-14"}]
[null,null,"*",null,null,"*"]
[null,null,null,null,null,null,null,null,null,null,"Last Susceptible Date:",{"$f":"IF(ISBLANK(G8), D8+13, G8-1)","v":"1900-01-13"}]
[null,null,null,null,null,null,"Select the vaccination the client received for primary series"]
[]
[null,null,null,null,null,"*",null,null,null,"*"]
[null,null,null,null,null,null,"Select from dropdown options"]
[null,null,null,null,null,null,"Is client 12 years of age or older?"]
[null,null,null,null,null,"*",null,null,null,"*"]
[null,null,null,null,null,null,"Select yes or no from dropdown"]
[null,null,null,null,null,null,"Was this a single exposure?"]
[null,null,null,null,null,"*",null,null,null,"*"]
[null,null,null,null,null,null,"Select yes or no from dropdown"]
[null,null,null,{"$f":"IF(G18=\"Yes\", \"Enter exposure date in both boxes\", \"Enter date exposure began. Enter date exposure ended if known and is on or before the last susceptible date (shown above) Do not enter date exposure ended if it's after the last susceptible date\")","v":"Enter date exposure began. Enter date exposure ended if known and is on or before the last susceptible date (shown above) Do not enter date exposure ended if it's after the last susceptible date"}]
[null,null,null,null,"Enter the date exposure began",null,null,null,"Enter the date exposure ended"]
[null,null,null,null,"Note: This may be the same day exposure ended. For household contacts the first date of exposure is 2 days before case’s symptom onset or test date.",null,null,null,"Note: Only enter if exposure ends before the date the contact is last susceptible (shown above). Leave blank if end date is unknown."]
[null,null,null,"*",null,null,null,"*"]
[null,null,null,null,{"$f":"IF(AND(G18=\"No\", L9<I23), \"Error: Please remove last date exposure ended\", \"N/A\")","v":"N/A"}]
[null,null,null,null,{"$f":"IF(AND(G18=\"Yes\", E23<>I23), \"Error: Exposure dates must match\", \"N/A\")","v":"N/A"}]
[null,null,null,null,null,null,"Is the CONTACT having symptoms?"]
[null,null,null,null,null,"*",null,null,null,"*"]
[null,null,null,null,null,null,"Select yes or no from dropdown"]
[]
[null,null,null,null,null,null,"Does the contact need to quarantine/isolate?"]
[]
[null,null,null,null,null,null,{"$f":"IF(AND(ISBLANK(G8),G15=\"Yes\",OR(AND(G12=\"Moderna\",DATEDIF(D8,E23,\"M\")>=5),AND(G12=\"Pfizer\",DATEDIF(D8,E23,\"M\")>=5),AND(G12=\"J&J\",DATEDIF(D8,E23,\"M\")>=2))),\"Yes-Switch to Contact Quarantine Calculator Tab\",IF(G27=\"Yes\",\"Yes\",IF(AND(NOT(ISBLANK(G8)),E23>G8),\"No\",IF(AND(G12=\"Moderna\",E23-D8>13,DATEDIF(D8,E23,\"M\")<5),\"No\",IF(AND(G12=\"Pfizer\",E23-D8>13,DATEDIF(D8,E23,\"M\")<5),\"No\",IF(AND(G12=\"J&J\",E23-D8>13,DATEDIF(D8,E23,\"M\")<2),\"No\",IF(AND(G15=\"No\",E23-D8>13),\"No\",\"Yes\")))))))","v":"Yes"}]
[]
[null,null,null,null,null,null,{"$f":"IF(G32=\"No\", \"Advise mask use for 10 days following exposure\", \"\")","v":""}]
[]
[null,null,null,null,null,null,"Did the contact test negative after symptom onset?"]
[]
[null,null,null,null,null,"*",null,null,null,"*",{"$f":"IF(G27 = \"No\", \"\", IF(G38=\"Yes\", \"Advise isolation until contact is well for 24 hours\", \"\"))","v":""}]
[null,null,null,null,null,null,"Select yes or no from dropdown"]
[]
[]
[null,null,null,null,null,null,"Is contact able and willing to wear a mask for at least 10 days from symptom onset (if symptomatic) and last exposure date?"]
[]
[null,null,null,null,null,"*",null,null,null,"*"]
[null,null,null,null,null,null,"Select yes or no from dropdown"]
[]
[null,null,null,null,null,null,"Asymptomatic\nCONTACTS",null,"Symptomatic\nCONTACTS"]
[null,null,null,null,null,null,"Last day of 5 or 10-day quarantine",null,"Date symptoms began",null,"Well date of contact\n(leave blank if still ill)"]
[null,null,null,null,null,null,{"$f":"IF(G44=\"No\",IF(ISBLANK(I23),IF(ISBLANK(G8),D8+23,G8+10),I23+10),IF(ISBLANK(I23),IF(ISBLANK(G8),D8+18,G8+5),I23+5))","v":"1900-01-18"},"*",null,"*"]
[null,null,null,null,null,null,{"$f":"IF(G27=\"No\",IF(G44=\"No\",\"Unable to wear a mask-10 day quarantine\",\"with mask wearing 10 days after exposure\"),\"\")","v":""},null,{"$f":"IF(ISBLANK(I23),\"\",IF(I49>(I23+10),\"*Warning-symptom onset and exposure date more than 10 days apart--results below may not be accurate for situation.*\",\"\"))","v":""}]
[null,null,null,null,null,null,null,null,"Last day of 5 or 10-day quarantine",null,"Last day of isolation if well date is known"]
[null,null,null,null,null,null,"Tested Negative\nCONTACTS",null,{"$f":"IF(G44=\"No\",IF(ISBLANK(I23),IF(ISBLANK(G8),D8+23,G8+10),I23+10),IF(ISBLANK(I23),IF(ISBLANK(G8),D8+18,G8+5),I23+5))","v":"1900-01-18"},null,{"$f":"IF(G27=\"Yes\",MAX(I55,K49),\"1/1/1111\")","v":"1/1/1111"}]
[]
[null,null,null,null,null,null,"Last day of 5 or 10-day quarantine",null,"Earliest possible last day of isolation (5 or 10-days)",null,"If a contact (not up-to-date with vaccinations) at any time develops symptoms, then they must meet requirements of both the 5 day quarantine AND case isolation; whichever is longer. If they test positive or are up-to-date they can follow the isolation instructions only. Testing is recommended for all contacts, except those previously diagnosed within the past 90 days, ideally 5 days after exposure. If client is unable to wear a mask for 10 days, client should be advised on a 10-day isolation/quarantine (whichever situation applies in client's scenario)."]
[null,null,null,null,null,null,{"$f":"IF(G44=\"No\",IF(ISBLANK(I23),IF(ISBLANK(G8),D8+23,G8+10),I23+10),IF(ISBLANK(I23),IF(ISBLANK(G8),D8+18,G8+5),I23+5))","v":"1900-01-18"},null,{"$f":"IF(AND(G27=\"Yes\",G44=\"No\"),I49+10,IF(G27=\"Yes\",I49+5,\"1/1/1111\"))","v":"1/1/1111"}]
[null,null,null,null,null,null,{"$f":"IF(G38=\"Yes\",IF(G44=\"No\",\"Unable to wear a mask-10 day quarantine\",\"with mask wearing 10 days after exposure\"),\"\")","v":""}]
[null,null,null,null,null,null,null,null,"Later of client's last date of quarantine and isolation"]
[null,null,null,null,null,null,null,null,{"$f":"IF(G27=\"Yes\",MAX(I52,I55,K52),\"1/1/1111\")","v":"1/1/1111"}]
[null,null,null,null,null,null,null,null,{"$f":"IF(G27=\"Yes\",IF(G44=\"No\",\"Unable to wear a mask-10 day quarantine and isolation\",\"with mask wearing 10 days after exposure and onset\"),\"\")","v":""}]

{"sheet":"Resources","index":5,"n_rows":13,"n_cols":2,"rows_kept":13,"cut":false,"hidden":false,"merged":[]}
["DHS Resources "]
["DHS Fact Sheet / Resource Library","https://www.dhs.wisconsin.gov/covid-19/resources.htm "]
["Case Fact Sheet","https://www.dhs.wisconsin.gov/publications/p02627.pdf"]
["Diagnosed (case) webpage","https://www.dhs.wisconsin.gov/covid-19/diagnosed.htm"]
["Close Contacts Fact Sheet","https://www.dhs.wisconsin.gov/publications/p02598a.pdf"]
["Close Contacts webpage","https://www.dhs.wisconsin.gov/covid-19/close-contacts.htm"]
["Vaccine webpage","https://www.dhs.wisconsin.gov/covid-19/vaccine.htm"]
["COVID-19 Vaccine Booster Shots","https://www.cdc.gov/coronavirus/2019-ncov/vaccines/recommendations/immuno.html"]
["Guidance for fully vaccinated individuals","https://www.dhs.wisconsin.gov/covid-19/vaccine-after.htm"]
["CDC Resources "]
["CDC References: Non-healthcare isolation","Discontinuation of Isolation for Persons with COVID -19 Not in Healthcare Settings"]
["CDC References: Healthcare return to work","CDC Criteria for Return to Work for Healthcare Personnel with Suspected or Confirmed COVID-19 (Interim Guidance)"]
["CDC References: Community","https://www.cdc.gov/coronavirus/2019-ncov/community/index.html "]

{"sheet":"Dropdown","index":6,"n_rows":3,"n_cols":1,"rows_kept":3,"cut":false,"hidden":true,"merged":[]}
["Symptoms"]
["Yes"]
["No"]